[Event "Late-Titled-Tuesday-Blitz-October-24-2023"]
[Site "Chess.com"]
[Date "2023.10.24"]
[Round "6"]
[White "Aygehovit1992"]
[Black "Deeper44"]
[Result "0-1"]
[WhiteElo "2645"]
[BlackElo "2553"]
[TimeControl "180+1"]
[EndTime "15:06:57 PDT"]
[Termination "Deeper44 won on time"]

1. e4 {[%clk 0:02:47.6]} 1... e6 {[%clk 0:02:57.7]} 2. d4 {[%clk 0:02:47.5]}
2... d5 {[%clk 0:02:58.3]} 3. Nc3 {[%clk 0:02:48.2]} 3... Nf6 {[%clk 0:02:58.6]}
4. Bg5 {[%clk 0:02:46.9]} 4... Be7 {[%clk 0:02:59.1]} 5. e5 {[%clk 0:02:47.1]}
5... Nfd7 {[%clk 0:02:59.7]} 6. h4 {[%clk 0:02:47.7]} 6... Nc6 {[%clk
0:03:00.2]} 7. Qg4 {[%clk 0:02:37.5]} 7... f6 {[%clk 0:03:00.5]} 8. exf6 {[%clk
0:02:27.4]} 8... Nxf6 {[%clk 0:03:01.4]} 9. Bxf6 {[%clk 0:02:20.2]} 9... Bxf6
{[%clk 0:02:58.3]} 10. Bb5 {[%clk 0:02:19.1]} 10... O-O {[%clk 0:02:49]} 11.
Bxc6 {[%clk 0:02:06.4]} 11... bxc6 {[%clk 0:02:49.9]} 12. Qd1 {[%clk 0:02:00.1]}
12... Rb8 {[%clk 0:02:34]} 13. Rb1 {[%clk 0:01:58.4]} 13... c5 {[%clk
0:02:32.8]} 14. dxc5 {[%clk 0:01:55.5]} 14... Rxb2 {[%clk 0:02:32.4]} 15. Nge2
{[%clk 0:01:51.9]} 15... Rxb1 {[%clk 0:02:23.9]} 16. Qxb1 {[%clk 0:01:52.8]}
16... Ba6 {[%clk 0:02:11.6]} 17. Nd1 {[%clk 0:01:44.8]} 17... d4 {[%clk
0:01:52.2]} 18. Qb3 {[%clk 0:01:41.5]} 18... Kh8 {[%clk 0:01:38.4]} 19. h5
{[%clk 0:01:37.6]} 19... d3 {[%clk 0:01:35.7]} 20. cxd3 {[%clk 0:01:36.7]} 20...
Bxd3 {[%clk 0:01:33.9]} 21. h6 {[%clk 0:01:33.3]} 21... g6 {[%clk 0:01:23]} 22.
Ne3 {[%clk 0:01:33.1]} 22... c6 {[%clk 0:01:07.5]} 23. a3 {[%clk 0:00:54.4]}
23... Qa5+ {[%clk 0:00:48.9]} 24. Qb4 {[%clk 0:00:54.7]} 24... Qa6 {[%clk
0:00:48.2]} 25. Nf4 {[%clk 0:00:50.9]} 25... Be5 {[%clk 0:00:33.6]} 26. Nxe6
{[%clk 0:00:47]} 26... Rb8 {[%clk 0:00:31.6]} 27. Qd2 {[%clk 0:00:39]} 27...
Qxa3 {[%clk 0:00:18.3]} 28. Nd1 {[%clk 0:00:39.4]} 28... Rb1 {[%clk 0:00:11.6]}
29. Rh3 {[%clk 0:00:12.4]} 29... Bc3 {[%clk 0:00:10.7]} 30. Rxd3 {[%clk
0:00:12.7]} 30... Bxd2+ {[%clk 0:00:10]} 31. Rxd2 {[%clk 0:00:13]} 31... Rb8
{[%clk 0:00:04.9]} 32. Ne3 {[%clk 0:00:13.2]} 32... Qa1+ {[%clk 0:00:04.7]} 33.
Ke2 {[%clk 0:00:13.3]} 33... Qe5 {[%clk 0:00:05.6]} 34. Nd4 {[%clk 0:00:10.4]}
34... Rd8 {[%clk 0:00:04.8]} 35. Nf3 {[%clk 0:00:04.7]} 35... Rxd2+ {[%clk
0:00:05.7]} 36. Nxd2 {[%clk 0:00:04.7]} 36... Qxc5 {[%clk 0:00:06.1]} 37. Ne4
{[%clk 0:00:05.4]} 37... Qb5+ {[%clk 0:00:05.9]} 38. Kf3 {[%clk 0:00:05.4]}
38... Qh5+ {[%clk 0:00:06.2]} 39. Ng4 {[%clk 0:00:04.2]} 39... Qf5+ {[%clk
0:00:06.6]} 40. Ke3 {[%clk 0:00:03.1]} 40... Qxg4 {[%clk 0:00:06.4]} 41. g3
{[%clk 0:00:02.7]} 41... Qh5 {[%clk 0:00:05.5]} 42. f4 {[%clk 0:00:01.7]} 42...
Qxh6 {[%clk 0:00:05.6]} 43. Kd4 {[%clk 0:00:02]} 43... Qg7+ {[%clk 0:00:05.9]}
44. Kc5 {[%clk 0:00:02]} 44... Qd7 {[%clk 0:00:05.6]} 45. Nf6 {[%clk 0:00:01.5]}
45... Qe7+ {[%clk 0:00:05.9]} 0-1

[Event "Late-Titled-Tuesday-Blitz-October-24-2023"]
[Site "Chess.com"]
[Date "2023.10.24"]
[Round "6"]
[White "familijatop71"]
[Black "gunslinger222"]
[Result "1-0"]
[WhiteElo "2145"]
[BlackElo "2323"]
[TimeControl "180+1"]
[EndTime "15:06:57 PDT"]
[Termination "familijatop71 won on time"]

1. e4 {[%clk 0:03:00.9]} 1... c5 {[%clk 0:02:55.2]} 2. c3 {[%clk 0:03:00.7]}
2... Nf6 {[%clk 0:02:53.1]} 3. e5 {[%clk 0:03:00.9]} 3... Nd5 {[%clk 0:02:53.4]}
4. Nf3 {[%clk 0:03:01.5]} 4... d6 {[%clk 0:02:52.4]} 5. d4 {[%clk 0:03:01.9]}
5... cxd4 {[%clk 0:02:51.7]} 6. exd6 {[%clk 0:03:02]} 6... e6 {[%clk 0:02:48.4]}
7. Nxd4 {[%clk 0:03:02.2]} 7... Bxd6 {[%clk 0:02:48]} 8. g3 {[%clk 0:03:02.8]}
8... O-O {[%clk 0:02:47.4]} 9. Bg2 {[%clk 0:03:03.3]} 9... Nc6 {[%clk
0:02:43.6]} 10. O-O {[%clk 0:03:03.3]} 10... a6 {[%clk 0:02:34.8]} 11. Nxc6
{[%clk 0:02:50.3]} 11... bxc6 {[%clk 0:02:34.3]} 12. c4 {[%clk 0:02:49.4]} 12...
Ne7 {[%clk 0:02:24.7]} 13. Nc3 {[%clk 0:02:45.7]} 13... Rb8 {[%clk 0:02:17.8]}
14. b3 {[%clk 0:02:30]} 14... f5 {[%clk 0:02:02.5]} 15. f4 {[%clk 0:02:05.1]}
15... Qb6+ {[%clk 0:01:47.4]} 16. Kh1 {[%clk 0:02:04.1]} 16... c5 {[%clk
0:01:41.4]} 17. Na4 {[%clk 0:01:53.4]} 17... Qc7 {[%clk 0:01:40.2]} 18. Bb2
{[%clk 0:01:48.7]} 18... Bd7 {[%clk 0:01:37.4]} 19. Nc3 {[%clk 0:01:38.2]} 19...
Bc6 {[%clk 0:01:36.3]} 20. Qe2 {[%clk 0:01:31.4]} 20... Bxg2+ {[%clk 0:01:33.6]}
21. Qxg2 {[%clk 0:01:29.2]} 21... Nc6 {[%clk 0:01:27.7]} 22. Rad1 {[%clk
0:01:06.3]} 22... Nd4 {[%clk 0:01:23.7]} 23. Ne2 {[%clk 0:00:53.4]} 23... Nc2
{[%clk 0:01:16.6]} 24. Bc1 {[%clk 0:00:37.9]} 24... Be7 {[%clk 0:01:05.3]} 25.
Nc3 {[%clk 0:00:36.7]} 25... Nd4 {[%clk 0:01:02.6]} 26. Be3 {[%clk 0:00:34.5]}
26... Bf6 {[%clk 0:01:00.9]} 27. Ne2 {[%clk 0:00:26.2]} 27... Nc2 {[%clk
0:00:56.8]} 28. Bc1 {[%clk 0:00:21.7]} 28... Rfd8 {[%clk 0:00:53.2]} 29. Ng1
{[%clk 0:00:19.3]} 29... Nd4 {[%clk 0:00:47.8]} 30. Nf3 {[%clk 0:00:17.3]} 30...
a5 {[%clk 0:00:41.6]} 31. Nxd4 {[%clk 0:00:17.3]} 31... Bxd4 {[%clk 0:00:39.6]}
32. Rfe1 {[%clk 0:00:14]} 32... Qb6 {[%clk 0:00:28.8]} 33. Bb2 {[%clk
0:00:12.4]} 33... Bxb2 {[%clk 0:00:24.7]} 34. Qxb2 {[%clk 0:00:12]} 34... Rxd1
{[%clk 0:00:21.5]} 35. Rxd1 {[%clk 0:00:11.8]} 35... a4 {[%clk 0:00:22.4]} 36.
Qe5 {[%clk 0:00:11.3]} 36... axb3 {[%clk 0:00:20.4]} 37. axb3 {[%clk 0:00:11.6]}
37... Qc6+ {[%clk 0:00:17.6]} 38. Kg1 {[%clk 0:00:09.5]} 38... Rxb3 {[%clk
0:00:13.8]} 39. Rd8+ {[%clk 0:00:09.5]} 39... Kf7 {[%clk 0:00:14.1]} 40. Rd6
{[%clk 0:00:06.8]} 40... Qc8 {[%clk 0:00:11.6]} 41. Rd2 {[%clk 0:00:03.8]} 41...
Rb1+ {[%clk 0:00:10.2]} 42. Kg2 {[%clk 0:00:04.2]} 42... Rb6 {[%clk 0:00:09.4]}
43. Kh3 {[%clk 0:00:03.5]} 43... h6 {[%clk 0:00:08.1]} 44. Re2 {[%clk
0:00:03.3]} 44... Rc6 {[%clk 0:00:06]} 45. Rd2 {[%clk 0:00:03.5]} 45... Qc7
{[%clk 0:00:04.9]} 46. Qe3 {[%clk 0:00:03.2]} 46... Kf6 {[%clk 0:00:02.7]} 47.
Rd3 {[%clk 0:00:03.7]} 47... Rd6 {[%clk 0:00:02.3]} 48. Qe5+ {[%clk 0:00:03.5]}
1-0

[Event "Late-Titled-Tuesday-Blitz-October-24-2023"]
[Site "Chess.com"]
[Date "2023.10.24"]
[Round "6"]
[White "jcmesafischer"]
[Black "Hoshka"]
[Result "1-0"]
[WhiteElo "2312"]
[BlackElo "2061"]
[TimeControl "180+1"]
[EndTime "15:07:00 PDT"]
[Termination "jcmesafischer won on time"]

1. e4 {[%clk 0:03:00.9]} 1... e5 {[%clk 0:02:59.3]} 2. Nf3 {[%clk 0:03:00.8]}
2... Nc6 {[%clk 0:02:59.2]} 3. Bc4 {[%clk 0:03:01.1]} 3... Nf6 {[%clk 0:02:59]}
4. Ng5 {[%clk 0:02:59.8]} 4... d5 {[%clk 0:02:58.9]} 5. exd5 {[%clk 0:03:00.7]}
5... Na5 {[%clk 0:02:59.2]} 6. Bb5+ {[%clk 0:03:01]} 6... c6 {[%clk 0:02:59.6]}
7. dxc6 {[%clk 0:03:01.9]} 7... bxc6 {[%clk 0:03:00.1]} 8. Bd3 {[%clk
0:03:02.4]} 8... h6 {[%clk 0:02:52.4]} 9. Ne4 {[%clk 0:02:59.8]} 9... Nd5 {[%clk
0:02:52.2]} 10. O-O {[%clk 0:02:58.6]} 10... Nf4 {[%clk 0:02:51.4]} 11. Be2
{[%clk 0:02:48.2]} 11... Be7 {[%clk 0:02:45.7]} 12. Nbc3 {[%clk 0:02:47.5]}
12... O-O {[%clk 0:02:44.6]} 13. d4 {[%clk 0:02:43.7]} 13... Nxe2+ {[%clk
0:02:34.6]} 14. Nxe2 {[%clk 0:02:43.3]} 14... f5 {[%clk 0:02:33.5]} 15. N4g3
{[%clk 0:02:37.6]} 15... e4 {[%clk 0:02:32.8]} 16. Bf4 {[%clk 0:02:37]} 16...
Nc4 {[%clk 0:02:28.3]} 17. b3 {[%clk 0:02:34.8]} 17... Nd6 {[%clk 0:02:22.5]}
18. f3 {[%clk 0:02:33.5]} 18... Bf6 {[%clk 0:01:54.2]} 19. Be5 {[%clk
0:02:28.6]} 19... e3 {[%clk 0:01:32.3]} 20. f4 {[%clk 0:01:47.1]} 20... Ba6
{[%clk 0:00:59]} 21. Rf3 {[%clk 0:01:39.9]} 21... Bxe5 {[%clk 0:00:46.6]} 22.
dxe5 {[%clk 0:01:33.8]} 22... Ne4 {[%clk 0:00:46.3]} 23. Nxe4 {[%clk 0:01:32.1]}
23... Qxd1+ {[%clk 0:00:40.1]} 24. Rxd1 {[%clk 0:01:30.6]} 24... Bxe2 {[%clk
0:00:39.7]} 25. Rxe3 {[%clk 0:01:11.9]} 25... Bxd1 {[%clk 0:00:39]} 26. Nd6
{[%clk 0:01:08.1]} 26... Bxc2 {[%clk 0:00:36.7]} 27. e6 {[%clk 0:01:05.4]} 27...
Be4 {[%clk 0:00:34.6]} 28. e7 {[%clk 0:01:03]} 28... Rfe8 {[%clk 0:00:31.7]} 29.
g4 {[%clk 0:00:59.6]} 29... g6 {[%clk 0:00:30.7]} 30. gxf5 {[%clk 0:00:58.9]}
30... gxf5 {[%clk 0:00:30.9]} 31. Kf2 {[%clk 0:00:59.6]} 31... Rxe7 {[%clk
0:00:20.9]} 32. Nxf5 {[%clk 0:00:59.5]} 32... Re6 {[%clk 0:00:18.1]} 33. Nd4
{[%clk 0:00:57.8]} 33... Ree8 {[%clk 0:00:15.2]} 34. f5 {[%clk 0:00:51.8]} 34...
Bd5 {[%clk 0:00:14.7]} 35. Rg3+ {[%clk 0:00:49.7]} 35... Kh7 {[%clk 0:00:14.7]}
36. Ne2 {[%clk 0:00:48.5]} 36... Rxe2+ {[%clk 0:00:13.5]} 37. Kxe2 {[%clk
0:00:48.3]} 37... Rf8 {[%clk 0:00:14.4]} 38. Ke3 {[%clk 0:00:44.3]} 38... Rxf5
{[%clk 0:00:14]} 39. Kd4 {[%clk 0:00:43.8]} 39... Rf2 {[%clk 0:00:13.3]} 40. a4
{[%clk 0:00:43]} 40... Rxh2 {[%clk 0:00:12.5]} 41. Re3 {[%clk 0:00:43.6]} 41...
a5 {[%clk 0:00:11.7]} 42. Re7+ {[%clk 0:00:40.3]} 42... Kg6 {[%clk 0:00:11.4]}
43. Ra7 {[%clk 0:00:41.2]} 43... Rb2 {[%clk 0:00:09.6]} 44. Rxa5 {[%clk
0:00:41.6]} 44... Rxb3 {[%clk 0:00:08.5]} 45. Ra8 {[%clk 0:00:42]} 45... h5
{[%clk 0:00:08.1]} 46. a5 {[%clk 0:00:42.1]} 46... h4 {[%clk 0:00:07.1]} 47. a6
{[%clk 0:00:42.3]} 47... Ra3 {[%clk 0:00:06.6]} 48. a7 {[%clk 0:00:42.3]} 48...
Kg5 {[%clk 0:00:05.7]} 49. Ke5 {[%clk 0:00:34.1]} 49... Kg4 {[%clk 0:00:05.3]}
50. Kf6 {[%clk 0:00:28.6]} 50... h3 {[%clk 0:00:04.6]} 51. Kg7 {[%clk
0:00:25.2]} 51... h2 {[%clk 0:00:04.3]} 52. Rh8 {[%clk 0:00:24.2]} 52... h1=Q
{[%clk 0:00:02.3]} 53. Rxh1 {[%clk 0:00:16.6]} 53... Bxh1 {[%clk 0:00:01.6]} 54.
Kh8 {[%clk 0:00:15.9]} 1-0

[Event "Late-Titled-Tuesday-Blitz-October-24-2023"]
[Site "Chess.com"]
[Date "2023.10.24"]
[Round "6"]
[White "DefiantChair"]
[Black "whitemirrorninja"]
[Result "0-1"]
[WhiteElo "2674"]
[BlackElo "2576"]
[TimeControl "180+1"]
[EndTime "15:07:18 PDT"]
[Termination "whitemirrorninja won by resignation"]

1. e4 {[%clk 0:03:00.9]} 1... c5 {[%clk 0:02:59.5]} 2. Nf3 {[%clk 0:03:00.8]}
2... a6 {[%clk 0:02:59.6]} 3. c4 {[%clk 0:03:00.5]} 3... Nc6 {[%clk 0:02:58.1]}
4. d4 {[%clk 0:02:59.8]} 4... cxd4 {[%clk 0:02:59]} 5. Nxd4 {[%clk 0:03:00.5]}
5... e5 {[%clk 0:02:59.8]} 6. Nf5 {[%clk 0:03:00.3]} 6... Nf6 {[%clk 0:02:58.9]}
7. Nc3 {[%clk 0:02:59.7]} 7... Bc5 {[%clk 0:02:58]} 8. Be3 {[%clk 0:02:55.2]}
8... Bxe3 {[%clk 0:02:57.4]} 9. Nxe3 {[%clk 0:02:54.8]} 9... d6 {[%clk
0:02:55.9]} 10. Be2 {[%clk 0:02:54.2]} 10... Be6 {[%clk 0:02:55.2]} 11. O-O
{[%clk 0:02:53.6]} 11... O-O {[%clk 0:02:55.4]} 12. b3 {[%clk 0:02:53.9]} 12...
Qa5 {[%clk 0:02:53]} 13. Rc1 {[%clk 0:02:48.9]} 13... Rfd8 {[%clk 0:02:51]} 14.
a4 {[%clk 0:02:41]} 14... Rac8 {[%clk 0:02:50.1]} 15. Qd2 {[%clk 0:02:39.9]}
15... Qb4 {[%clk 0:02:42.2]} 16. Rfd1 {[%clk 0:02:32.4]} 16... Nd4 {[%clk
0:02:32.5]} 17. Bf1 {[%clk 0:01:42.4]} 17... a5 {[%clk 0:02:19.9]} 18. Rb1
{[%clk 0:01:21.3]} 18... h5 {[%clk 0:02:09.8]} 19. Nc2 {[%clk 0:01:15.2]} 19...
Nxc2 {[%clk 0:01:43.1]} 20. Qxc2 {[%clk 0:01:16.1]} 20... h4 {[%clk 0:01:41.2]}
21. Qd3 {[%clk 0:01:05.3]} 21... Qb6 {[%clk 0:01:09.6]} 22. h3 {[%clk
0:01:03.3]} 22... Nh5 {[%clk 0:01:06]} 23. Ne2 {[%clk 0:00:55.5]} 23... g6
{[%clk 0:00:45.8]} 24. Qf3 {[%clk 0:00:44.6]} 24... Rf8 {[%clk 0:00:32]} 25. Qe3
{[%clk 0:00:44.7]} 25... Qxe3 {[%clk 0:00:28.2]} 26. fxe3 {[%clk 0:00:45.6]}
26... Nf6 {[%clk 0:00:28.4]} 27. Nc3 {[%clk 0:00:43.3]} 27... Rfd8 {[%clk
0:00:27.4]} 28. Be2 {[%clk 0:00:42.9]} 28... Kg7 {[%clk 0:00:26.7]} 29. Rd2
{[%clk 0:00:42.1]} 29... Rc6 {[%clk 0:00:26.4]} 30. Rbd1 {[%clk 0:00:41.9]}
30... Kf8 {[%clk 0:00:23]} 31. Bf3 {[%clk 0:00:42]} 31... Ke7 {[%clk 0:00:22.2]}
32. Kf2 {[%clk 0:00:39.7]} 32... Nd7 {[%clk 0:00:20.6]} 33. Rb1 {[%clk 0:00:27]}
33... Rb6 {[%clk 0:00:16.6]} 34. Nb5 {[%clk 0:00:22.1]} 34... Nc5 {[%clk
0:00:17]} 35. Ke2 {[%clk 0:00:20.5]} 35... f5 {[%clk 0:00:13.7]} 36. exf5 {[%clk
0:00:20.8]} 36... gxf5 {[%clk 0:00:14.1]} 37. Kf2 {[%clk 0:00:19.5]} 37... Rg8
{[%clk 0:00:10.2]} 38. Bd1 {[%clk 0:00:16.7]} 38... Ne4+ {[%clk 0:00:09.7]} 39.
Ke1 {[%clk 0:00:17]} 39... Nxd2 {[%clk 0:00:10.3]} 40. Kxd2 {[%clk 0:00:17.9]}
40... Rxg2+ {[%clk 0:00:10.4]} 41. Kc3 {[%clk 0:00:18.8]} 41... Rg3 {[%clk
0:00:10.2]} 42. Bc2 {[%clk 0:00:17.5]} 42... Rxe3+ {[%clk 0:00:09.9]} 43. Kb2
{[%clk 0:00:17.1]} 43... f4 {[%clk 0:00:10.8]} 44. Rg1 {[%clk 0:00:17.5]} 44...
Rg3 {[%clk 0:00:10.1]} 45. Rf1 {[%clk 0:00:17.3]} 45... Bxh3 {[%clk 0:00:10.5]}
46. Rf2 {[%clk 0:00:17.7]} 46... Rg2 {[%clk 0:00:09.9]} 47. Rf3 {[%clk
0:00:18.2]} 47... Rg3 {[%clk 0:00:10.3]} 48. Rf2 {[%clk 0:00:18.2]} 48... Bg4
{[%clk 0:00:10.7]} 49. Nc3 {[%clk 0:00:17.1]} 49... Rc6 {[%clk 0:00:09.4]} 50.
Nd5+ {[%clk 0:00:17.3]} 50... Ke6 {[%clk 0:00:09.9]} 51. Be4 {[%clk 0:00:17.1]}
51... Rc8 {[%clk 0:00:09.8]} 52. Rh2 {[%clk 0:00:16]} 52... h3 {[%clk
0:00:09.7]} 53. b4 {[%clk 0:00:15.7]} 53... axb4 {[%clk 0:00:09.1]} 54. a5
{[%clk 0:00:16.6]} 54... Rxc4 {[%clk 0:00:09]} 55. Bh1 {[%clk 0:00:16.5]} 55...
Rd4 {[%clk 0:00:08.2]} 56. Nc7+ {[%clk 0:00:15.9]} 56... Kd7 {[%clk 0:00:08.1]}
57. Nb5 {[%clk 0:00:16]} 57... f3 {[%clk 0:00:07.3]} 58. Nxd4 {[%clk 0:00:15.6]}
58... exd4 {[%clk 0:00:08.2]} 59. Kb3 {[%clk 0:00:15.7]} 59... Rg2 {[%clk
0:00:08.2]} 60. Bxg2 {[%clk 0:00:16.1]} 60... fxg2 {[%clk 0:00:08.3]} 0-1

[Event "Late-Titled-Tuesday-Blitz-October-24-2023"]
[Site "Chess.com"]
[Date "2023.10.24"]
[Round "6"]
[White "GoltsevDmitry2000"]
[Black "Ykow"]
[Result "0-1"]
[WhiteElo "2633"]
[BlackElo "2541"]
[TimeControl "180+1"]
[EndTime "15:07:21 PDT"]
[Termination "Ykow won on time"]

1. e4 {[%clk 0:02:58.4]} 1... c5 {[%clk 0:02:29.5]} 2. Nf3 {[%clk 0:02:57.4]}
2... d6 {[%clk 0:02:29.9]} 3. d4 {[%clk 0:02:57.9]} 3... cxd4 {[%clk 0:02:29.7]}
4. Nxd4 {[%clk 0:02:58.8]} 4... Nf6 {[%clk 0:02:29.9]} 5. Nc3 {[%clk 0:02:59.2]}
5... e5 {[%clk 0:02:30.1]} 6. Nb3 {[%clk 0:02:59.1]} 6... Be6 {[%clk 0:02:29.5]}
7. Be3 {[%clk 0:02:58.1]} 7... Be7 {[%clk 0:02:28]} 8. Be2 {[%clk 0:02:58.2]}
8... O-O {[%clk 0:02:27.7]} 9. O-O {[%clk 0:02:58]} 9... a5 {[%clk 0:02:27.9]}
10. Nd5 {[%clk 0:02:58]} 10... Bxd5 {[%clk 0:02:26.4]} 11. exd5 {[%clk
0:02:57.5]} 11... a4 {[%clk 0:02:27.3]} 12. Nc1 {[%clk 0:02:57.2]} 12... Nfd7
{[%clk 0:02:26.4]} 13. a3 {[%clk 0:02:55.8]} 13... f5 {[%clk 0:02:25.9]} 14. f4
{[%clk 0:02:53.5]} 14... Na6 {[%clk 0:02:25.2]} 15. c4 {[%clk 0:02:49.9]} 15...
Nac5 {[%clk 0:02:23.1]} 16. Nd3 {[%clk 0:02:48.1]} 16... Nxd3 {[%clk 0:02:19.5]}
17. Bxd3 {[%clk 0:02:45.5]} 17... e4 {[%clk 0:02:19.1]} 18. Be2 {[%clk
0:02:44.7]} 18... Bf6 {[%clk 0:02:17.7]} 19. Qd2 {[%clk 0:02:41.1]} 19... Qc7
{[%clk 0:02:16.6]} 20. Rfc1 {[%clk 0:02:39]} 20... Nc5 {[%clk 0:02:16.6]} 21.
Bd1 {[%clk 0:02:32.9]} 21... Nd3 {[%clk 0:02:16.3]} 22. Rc2 {[%clk 0:02:32.9]}
22... Rfc8 {[%clk 0:02:11.8]} 23. Be2 {[%clk 0:02:32.4]} 23... Nc5 {[%clk
0:02:10.7]} 24. Rf1 {[%clk 0:02:29.7]} 24... Nb3 {[%clk 0:02:07.2]} 25. Qd1
{[%clk 0:02:27.6]} 25... b5 {[%clk 0:02:07]} 26. c5 {[%clk 0:02:24.6]} 26...
dxc5 {[%clk 0:02:05.1]} 27. Bxb5 {[%clk 0:02:21.4]} 27... Nd4 {[%clk 0:02:05.2]}
28. Bxd4 {[%clk 0:02:18.4]} 28... Bxd4+ {[%clk 0:02:06.1]} 29. Kh1 {[%clk
0:02:18.6]} 29... Qd6 {[%clk 0:02:03.4]} 30. Qe2 {[%clk 0:02:10.4]} 30... Rcb8
{[%clk 0:01:59.9]} 31. Rd1 {[%clk 0:02:03.7]} 31... g6 {[%clk 0:01:57.6]} 32. g3
{[%clk 0:02:02.5]} 32... Kg7 {[%clk 0:01:57.5]} 33. Bc4 {[%clk 0:01:47.6]} 33...
h6 {[%clk 0:01:55.9]} 34. Rf1 {[%clk 0:01:44.6]} 34... Ra7 {[%clk 0:01:55.9]}
35. g4 {[%clk 0:01:44.3]} 35... Qf6 {[%clk 0:01:43.7]} 36. d6 {[%clk 0:01:39.5]}
36... Rd8 {[%clk 0:01:41.5]} 37. gxf5 {[%clk 0:01:32.7]} 37... Qxf5 {[%clk
0:01:41.6]} 38. Qg2 {[%clk 0:01:13.3]} 38... Rxd6 {[%clk 0:01:40.8]} 39. Re2
{[%clk 0:01:13.3]} 39... Re7 {[%clk 0:01:40.6]} 40. Bb5 {[%clk 0:01:10.1]} 40...
e3 {[%clk 0:01:34]} 41. Bxa4 {[%clk 0:01:08.4]} 41... Rf6 {[%clk 0:01:30]} 42.
Bc2 {[%clk 0:01:07.3]} 42... Qh5 {[%clk 0:01:30.3]} 43. f5 {[%clk 0:01:04.5]}
43... g5 {[%clk 0:01:29.8]} 44. Bb3 {[%clk 0:01:01.8]} 44... Rb6 {[%clk
0:01:22.6]} 45. Bc4 {[%clk 0:00:47.5]} 45... Qe8 {[%clk 0:01:18]} 46. Qd5 {[%clk
0:00:38]} 46... Re5 {[%clk 0:01:06.3]} 47. Qf3 {[%clk 0:00:25.8]} 47... Rf6
{[%clk 0:01:01.9]} 48. b4 {[%clk 0:00:22]} 48... Rexf5 {[%clk 0:01:00]} 49. Qb7+
{[%clk 0:00:19.1]} 49... Kh8 {[%clk 0:00:58.1]} 50. Rxf5 {[%clk 0:00:17.3]}
50... Rxf5 {[%clk 0:00:57.9]} 51. Bd3 {[%clk 0:00:16.8]} 51... Rf7 {[%clk
0:00:56.2]} 52. Qd5 {[%clk 0:00:12.1]} 52... Qf8 {[%clk 0:00:52.5]} 53. Re1
{[%clk 0:00:06.1]} 53... Rf2 {[%clk 0:00:35.5]} 54. Qe4 {[%clk 0:00:05.2]} 54...
Qf7 {[%clk 0:00:29.5]} 55. bxc5 {[%clk 0:00:03.8]} 55... Bxc5 {[%clk 0:00:30.4]}
56. Rb1 {[%clk 0:00:03]} 56... Qf3+ {[%clk 0:00:25.5]} 57. Qxf3 {[%clk
0:00:03.2]} 57... Rxf3 {[%clk 0:00:26.4]} 58. a4 {[%clk 0:00:03.7]} 58... Rf2
{[%clk 0:00:25.8]} 59. a5 {[%clk 0:00:03.9]} 59... Rd2 {[%clk 0:00:24.8]} 60.
Bc4 {[%clk 0:00:03.7]} 60... e2 {[%clk 0:00:24.2]} 61. Bb3 {[%clk 0:00:03.3]}
61... Bf2 {[%clk 0:00:22.8]} 62. a6 {[%clk 0:00:02.8]} 62... Rb2 {[%clk
0:00:19.1]} 63. a7 {[%clk 0:00:02]} 63... Rxb1+ {[%clk 0:00:17.7]} 64. Kg2
{[%clk 0:00:01.7]} 64... Bxa7 {[%clk 0:00:18.6]} 65. Bd1 {[%clk 0:00:01.4]}
65... e1=Q {[%clk 0:00:18.4]} 66. Be2 {[%clk 0:00:01]} 66... Qf2+ {[%clk
0:00:18.3]} 67. Kh3 {[%clk 0:00:01]} 67... h5 {[%clk 0:00:18.1]} 0-1